Cogmind - Beta 13 @@@ ROGUE MODE // 2024.04.03 @ 14:02:06 Player: Denialbot Result: Destroyed by as-98421 with Assembled Rifle Performance ------------- Evolutions (0) 0 Regions Visited (3) 600 Robots Destroyed (25) 125 Value Destroyed (583) 583 Prototype IDs (2) 40 Alien Tech Used (0) 0 Bonus (0) 0 TOTAL SCORE: 1348 Bonus ------- None Cogmind --------- Core Integrity 0/250 Matter 236/300 Energy 80/100 System Corruption 1% Temperature Danger (467) Movement Core (400) Ox7 Location -10/Exiles Parts ------- > --- POWER (1) -------- (None) > --- PROPULSION (2) --- (None) > --- UTILITY (2) ------ Large Storage Unit Tractor Beam > --- WEAPON (2) ------- Particle Gun > --- INVENTORY (15) --- Improved Heat Sink Large Battery (200) Large Battery (200) Large Battery (200) Machine Analyzer Targeting Computer Targeting Computer ECM Suite Utility Shielding Reactive Plating Insulated Plating Hardlight Generator Mining Claw Peak State ------------ > --- POWER ------------ Ion Engine > --- PROPULSION ------- Light Treads Light Treads > --- UTILITY ---------- Large Storage Unit Reactive Plating > --- WEAPON ----------- Small Laser Bore Cannon > --- INVENTORY -------- Improved Heat Sink Large Battery Large Battery Large Battery Machine Analyzer Terrain Scanner Targeting Computer Targeting Computer ECM Suite Utility Shielding Insulated Plating Hardlight Generator Tractor Beam EM Pulse Gun Mining Claw [Rating: 15] Favorites ----------- Power Ion Engine Engine Ion Engine Propulsion Light Treads Treads Light Treads Utility Large Storage Unit Device Sensor Array Storage Large Storage Unit Processor Targeting Computer Protection Light Armor Plating Weapon EM Pulse Gun Energy Gun EM Pulse Gun Ballistic Gun Assault Rifle Ballistic Cannon Bore Cannon Launcher Grenade Launcher Build | -11 -10 -10 -10 ------- Run | Yrd Mat Min Exi Slots Evolved . | . . . . Power . | . . . . Propulsion . | . . . . Utility . | . . . . Weapon . | . . . . Parts Attached 34 | 6 14 13 1 Power 5 | 1 1 3 . Engine 5 | 1 1 3 . Core . | . . . . Reactor . | . . . . Propulsion 7 | 2 4 1 . Treads 7 | 2 4 1 . Leg . | . . . . Wheel . | . . . . Hover . | . . . . Flight . | . . . . Utility 11 | 1 5 4 1 Device 3 | . 1 1 1 Storage 5 | 1 4 . . Processor 1 | . . 1 . Hackware . | . . . . Protection 2 | . . 2 . Artifact . | . . . . Weapon 11 | 2 4 5 . Energy Gun 6 | . 3 3 . Energy Cannon . | . . . . Ballistic Gun 3 | 2 1 . . Ballistic Cannon 1 | . . 1 . Launcher 1 | . . 1 . Special Weapon . | . . . . Impact Weapon . | . . . . Slashing Weapon . | . . . . Piercing Weapon . | . . . . Special Melee Weapon . | . . . . Unidentified Prototypes . | . . . . Parts Lost 12 | . 2 5 5 Power 1 | . . . 1 Propulsion 3 | . . 1 2 Utility 3 | . 1 1 1 Weapon 5 | . 1 3 1 Highest Loss Streak 5 | . 2 4 5 To Critical Strikes 2 | . . . 2 Average Slot Usage (%) 96 | . 97 95 98 Engine 14 | . 14 14 14 Treads 27 | . 28 27 28 Device 4 | . 4 5 . Storage 16 | . 19 14 14 Protection 5 | . 1 8 13 Energy Gun 13 | . 11 14 14 Ballistic Gun 8 | . 16 . . Ballistic Cannon 4 | . . 9 13 Naked Turns . | . . . . Heaviest Build 40 | 13 30 40 40 Greatest Support 40 | 40 40 40 40 Greatest Overweight (x) 1 | . . 1 . Average Overweight (x) . | . . . . Largest Inventory Capacity 25 | 8 25 15 15 Average Capacity 12 | 6 9 15 15 Most Carried 15 | 4 15 15 14 Average Carried 10 | 1 7 14 13 Final Capacity 15 | 8 15 15 15 Final Carried 14 | 4 14 14 13 Class Distribution -------------------- 100% | Mutant Dominant Class ---------------- Mutant | -10/Materials Mutant | -10/Mines Mutant | -10/Exiles Resources | -11 -10 -10 -10 ----------- Run | Yrd Mat Min Exi Matter Collected 837 | 214 383 220 20 Remotely 20 | . . . 20 Salvage Created 959 | . 648 284 27 Parts 59 | . 43 16 . Haulers Intercepted 2 | . 2 . . Recyclers Shooed 3 | . 3 . . Parts Field Recycled . | . . . . Retrieved Matter . | . . . . Parts Self-Destructed . | . . . . Prevented . | . . . . Kills | -11 -10 -10 -10 ------- Run | Yrd Mat Min Exi Combat Hostiles Destroyed 23 | . 13 7 3 Guns 17 | . 13 3 1 Cannons 5 | . . 3 2 AOE 1 | . . 1 . Classes Destroyed 9 | . 7 2 . Builder 1 | . 1 . . Hauler 2 | . 2 . . Recycler 1 | . 1 . . Operator 1 | . 1 . . Watcher 1 | . 1 . . Swarmer 7 | . 7 . . Grunt 10 | . 6 4 . Sentry 2 | . . 2 . Assembled 4 | . . 1 3 Best Kill Streak 5 | . 5 2 3 Combat Bots Only 5 | . 5 2 3 Max Kills in Single Turn 2 | . 2 1 1 Gunslinging . | . . . . Exploded 1 | . . 1 . Melee . | . . . . Uniques/NPCs Destroyed . | . . . . Combat | -11 -10 -10 -10 -------- Run | Yrd Mat Min Exi Hostile Shots Fired 201 | . 90 55 56 Missed 53 | . 25 14 14 Damage Taken 2062 | . 599 878 585 Core 254 | . 78 103 73 Absorbed by Shields . | . . . . Core Remaining (%) 100 | 100 . . . Volleys Fired 91 | . 51 27 13 Largest 2 | . 2 2 2 Hottest 122 | . 60 122 122 Shots Fired 167 | . 102 46 19 Gun 145 | . 102 29 14 Cannon 21 | . . 16 5 Launcher 1 | . . 1 . Special . | . . . . Kinetic 91 | . 68 18 5 Thermal 30 | . . 16 14 Explosive 1 | . . 1 . Electromagnetic 45 | . 34 11 . Robot Hit Streak 4 | . 4 4 4 Robot Miss Streak 3 | . 3 3 3 Penetration Max . | . . . . Secondary Targets 2 | . 2 . . Max Gunslinging Chain 1 | . 1 . . Shots Hit Robots 84 | . 52 23 9 Core Hits 49 | . 30 14 5 Critical Kills 2 | . 1 1 . Critical Parts Destroyed 4 | . . 1 3 Critical Strikes 7 | . 2 2 3 Destroy 6 | . 1 2 3 Corrupt 1 | . 1 . . Melee Attacks . | . . . . Impact . | . . . . Slashing . | . . . . Piercing . | . . . . Sneak Attacks . | . . . . Combat Hostiles . | . . . . Follow-up Attacks . | . . . . Damage Inflicted 1479 | . 923 386 170 Guns 1055 | . 734 224 97 Cannons 187 | . . 114 73 Explosions 231 | . 183 48 . Melee . | . . . . Ramming 6 | . 6 . . Kinetic 598 | . 384 141 73 Thermal 376 | . 183 96 97 Explosive 48 | . . 48 . Electromagnetic 451 | . 350 101 . Impact . | . . . . Slashing . | . . . . Piercing . | . . . . Highest Corruption 1 | . 1 1 1 Average Corruption 1 | . 1 1 1 Corruption Purged . | . . . . Corruption Blocked . | . . . . Effects 4 | . . 3 1 Message Errors 1 | . . 1 . Data Loss (minor) 1 | . . 1 . Misfires 1 | . . . 1 Alerts 1 | . . 1 . Overload Shots . | . . . . Overflow Damage 17 | . 17 . . Projectiles . | . . . . Explosions 17 | . 17 . . Melee . | . . . . Knockbacks 5 | . . 1 4 Impact . | . . . . Kinetic 4 | . . 1 3 Secondary 1 | . . . 1 Self-Inflicted Damage 29 | . 29 . . Shots 1 | . 1 . . Rammed 3 | . 2 1 . Targets Rammed 3 | . 2 1 . Kicked . | . . . . Crushed . | . . . . Highest Temperature 485 | . 30 342 485 Average Temperature 110 | . 8 127 287 Received Heat Transfer 295 | . 72 223 . Effects 2 | . . . 2 Shutdowns 1 | . . . 1 Matter Decay 1 | . . . 1 Siege Activations . | . . . . Robots Corrupted . | . . . . Combat Hostiles . | . . . . Parts Fried . | . . . . Impact Corruptions . | . . . . Robots Melted . | . . . . Combat Hostiles . | . . . . Parts Melted . | . . . . Heat Transferred 847 | . 400 225 222 Parts Sabotaged . | . . . . Parts Stolen . | . . . . Parts Stripped . | . . . . Power Chain Reactions 3 | . 3 . . Alert | -11 -10 -10 -10 ------- Run | Yrd Mat Min Exi Peak Influence 320 | . 320 108 . Initial 53 | . . 53 . Average 118 | . 185 44 . Maximum Alert Level 1 | . 1 . . Low Security (%) 77 | 100 58 100 . Level 1 22 | . 41 . . Level 2 . | . . . . Level 3 . | . . . . Level 4 . | . . . . Level 5 . | . . . . High Security . | . . . . Max Security . | . . . . Squads Dispatched 4 | . 3 1 . Investigation 4 | . 3 1 . Extermination . | . . . . Reinforcement . | . . . . Assault . | . . . . Garrison . | . . . . Intercept . | . . . . Searches Triggered . | . . . . Construction Impeded . | . . . . Haulers Reinforced . | . . . . Active Scanning Responses . | . . . . Cargo Convoy Interrupts . | . . . . Stealth | -11 -10 -10 -10 --------- Run | Yrd Mat Min Exi Distress Signals 3 | . 3 . . Communications Jammed . | . . . . Distress Signals . | . . . . Times Spotted 60 | . 30 22 8 Peak Tracking Total 11 | . 8 11 9 Tactical Retreats 2 | . 2 . . Traps | -11 -10 -10 -10 ------- Run | Yrd Mat Min Exi Traps Triggered 1 | . 1 . . Indirectly . | . . . . Trap Hack Attempts . | . . . . Triggered . | . . . . Disarmed . | . . . . Reprogrammed . | . . . . Reused . | . . . . Traps Extracted . | . . . . Installed . | . . . . Triggered . | . . . . Machines | -11 -10 -10 -10 ---------- Run | Yrd Mat Min Exi Machines Disabled 5 | . 1 1 3 Max in Single Turn 2 | . 1 1 2 Machines Repaired . | . . . . Machines Dismantled . | . . . . Machines Sabotaged . | . . . . Overloaded Fab Kills . | . . . . Hacking | -11 -10 -10 -10 --------- Run | Yrd Mat Min Exi Machines Accessed 9 | . 7 2 . Terminals 6 | . 5 1 . Fabricators . | . . . . Repair Stations 1 | . 1 . . Recycling Units 1 | . 1 . . Scanalyzers . | . . . . Garrison Access . | . . . . Total Hacks 24 | . 22 2 . Successful 14 | . 12 2 . Failed 10 | . 10 . . Catastrophic . | . . . . Database Lockouts . | . . . . Manual . | . . . . Terminals 20 | . 19 1 . Fabricators . | . . . . Repair Stations 2 | . 2 . . Recycling Units 1 | . 1 . . Scanalyzers . | . . . . Garrison Access . | . . . . Terminal Hacks 12 | . 10 2 . Prototype ID Bank 1 | . 1 . . Open Door 1 | . . 1 . Branch Access Points 1 | . 1 . . Alert Level 2 | . 2 . . Locate Traps 1 | . 1 . . Dispatch Records 1 | . 1 . . Maintenance Status 1 | . 1 . . Recall Investigation 1 | . 1 . . Zone Layout 3 | . 2 1 . Fabricator Hacks . | . . . . Repair Station Hacks 1 | . 1 . . Refit 1 | . 1 . . Recycling Unit Hacks 1 | . 1 . . Report Inventory 1 | . 1 . . Scanalyzer . | . . . . Garrison Access Hacks . | . . . . Unauthorized Hacks . | . . . . Terminals . | . . . . Fabricators . | . . . . Repair Stations . | . . . . Recycling Units . | . . . . Scanalyzers . | . . . . Garrison Access . | . . . . Data Cores Recovered 1 | . 1 . . Used . | . . . . Hacking Detections 7 | . 7 . . Full Trace Events 1 | . 1 . . Feedback Events 1 | . 1 . . Corruption 1 | . 1 . . Feedback Blocked . | . . . . Robot Schematics Acquired . | . . . . Robots Built . | . . . . Authchips . | . . . . Time . | . . . . Total Robot Build Rating . | . . . . Part Schematics Acquired . | . . . . Parts Built . | . . . . Authchips . | . . . . Time . | . . . . Total Part Build Rating . | . . . . Parts Repaired . | . . . . Time . | . . . . Parts Recycled . | . . . . Recycled Matter . | . . . . Retrieved Matter . | . . . . Retrieved Components . | . . . . Parts Scanalyzed . | . . . . Part Schematics Acquired . | . . . . Parts Damaged . | . . . . Bothacking | -11 -10 -10 -10 ------------ Run | Yrd Mat Min Exi Used RIF Installer . | . . . . Robots Hacked . | . . . . Non-combat . | . . . . Combat . | . . . . Robot Hacks Applied . | . . . . Relay Couplers Released . | . . . . Fabnet Peak Effective % . | . . . . Robots Rewired . | . . . . Allies Hacked . | . . . . Hacks Repelled . | . . . . Allies | -11 -10 -10 -10 -------- Run | Yrd Mat Min Exi Total Allies . | . . . . Largest Group . | . . . . Highest-Rated Group . | . . . . Highest-Rated Ally . | . . . . Total Orders . | . . . . Ally Attacks . | . . . . Total Damage . | . . . . Kills . | . . . . Allies Corrupted . | . . . . Allies Melted . | . . . . Intel | -11 -10 -10 -10 ------- Run | Yrd Mat Min Exi Robot Analysis Total . | . . . . Derelict Logs Recovered 1 | . . 1 . Drone Launches . | . . . . Drone Recoveries . | . . . . Exploration | -11 -10 -10 -10 ------------- Run | Yrd Mat Min Exi Turns Passed 2017 | 76 1000 785 156 Spaces Moved 1017 | 43 476 420 78 Core 7 | 7 . . . Treads 1010 | 36 476 420 78 Legs . | . . . . Wheels . | . . . . Hover . | . . . . Flight . | . . . . Fastest Speed 50 | 50 160 160 160 Average Speed 159 | 142 160 160 160 Slowest Speed 240 | 160 160 240 160 Overloaded Moves . | . . . . Propulsion Burnouts . | . . . . Robots Hopped . | . . . . Cave-ins Triggered . | . . . . Exploration Rate (%) 47 | 5 77 80 29 Regions Visited 3 Branch Regions 2 Pre-discovered Areas . | . . . . Known Exits Taken 1 | . 1 . . Unknown Exits Taken 2 | 1 . 1 . Scrap Searched . | . . . . Spaces Dug 2 | . . 2 . Terrain Destroyed 31 | . 11 20 . Melee . | . . . . Projectile 14 | . . 14 . AOE 17 | . 11 6 . Terrain Rammed . | . . . . Walls Destroyed . | . . . . Machines Disabled . | . . . . Actions | -11 -10 -10 -10 --------- Run | Yrd Mat Min Exi Total 1253 | 58 619 484 92 Wait 34 | . 28 6 . Move 1014 | 42 475 419 78 Hop . | . . . . Pick Up 51 | 10 30 11 . Fast Attach 1 | . . 1 . Attach 14 | 6 2 5 1 Detach . | . . . . Swap 19 | . 12 7 . Drop 26 | . 19 7 . Fire 91 | . 51 27 13 Melee . | . . . . Ram . | . . . . Kick . | . . . . Crush 3 | . 2 1 . Escape Stasis . | . . . . Rewire . | . . . . Trap . | . . . . Miscellaneous . | . . . . Route ------- -11/Scrapyard -10/Materials (discovered 4 exits: [*Mat x2] / *Min x2) -10/Mines (discovered 3 exits: [*Mat x2] / [*Exi]) -10/Exiles (discovered 1 exit: [*Min]) History --------- Turn | Location | Event 17 | -11/Scrapyard | Discovered new exit (range 16) 77 | -11/Scrapyard | Entered Materials 257 | -10/Materials | Identified exit to Mines 315 | -10/Materials | Build established: Mutant 399 | -10/Materials | Discovered new exit (range 9) 644 | -10/Materials | Discovered new exit (range 17) 1077 | -10/Materials | Entered Mines 1078 | -10/Mines | Assembled infested the area 1109 | -10/Mines | Core integrity fell below 50% 1121 | -10/Mines | Met a Derelict shopkeep closing up shop 1135 | -10/Mines | Lost 4 parts (1u3w) 1151 | -10/Mines | Met a Derelict bent on vengeance 1310 | -10/Mines | Learned Materials security intel 1347 | -10/Mines | A weapon hastily lodged in a ceiling crevice suddenly fell to the ground 1669 | -10/Mines | Discovered new exit (range 9) 1779 | -10/Mines | Discovered new exit (range 12) 1842 | -10/Mines | Discovered new exit (range 7) 1862 | -10/Mines | Entered Exiles 1886 | -10/Exiles | Discovered new exit (range 15) 1907 | -10/Exiles | Met 8R-AWN 1934 | -10/Exiles | Met EX-HEX 1983 | -10/Exiles | Attacked by the Exiles 2011 | -10/Exiles | Core integrity fell below 20% 2018 | -10/Exiles | Destroyed by as-98421 with Assembled Rifle Last Messages --------------- HV Slug penetrates Wall. Ion Engine destroyed. Penetrated by HV Slug. HV Slug penetrates Wall. Penetrated by HV Slug. HV Slug penetrates Wall. Machine disabled. Overheating: Matter decay (-33). Penetrated by HV Slug. HV Slug penetrates Wall. Penetrated by HV Slug. Critical hit (Destroy). Lgt. Treads destroyed. HV Slug penetrates Wall. Acquired 15 matter. Acquired 5 matter. Penetrated by HV Slug. HV Slug penetrates Wall. HV Slug penetrates Machine. [Achievement: First Step to Greatness] Map ----- +----------------------------------------------------+ | ?????????????????????????????????????????????????? | | ?????????????????????????????????????????????????? | | ?????????????????????????????????????????????????? | | ?????????????????????????????????????????????????? | | ?????????????????????????????????????????????????? | | ??????????????????????????? #?????###?###????????? | | ????????????????????????? #####"""""""""#?????? | | ??????????????????????? " """ """"##???? | | ??????????????????????? "" " #???? | | ??????????????????????? " """#???? | | ??????????????????????? " "#???? | | ??????????????????????? " "##??? | | ???????????????????????? ""###? | | ????????????????????????? """#? | | ??????????????????????????" "#? | | ???????????????????????????#""" ## | | ????????????????????????????#""" # | | ????????????????????????????#"""" | | ??????????? ??????????????##"" | | ?????????? #??####???####""" | | ?????????? ##aaa####""" | | ????????? """ g | | ????????? % | | ????????? a | | ????????? a a % # | | ????????? @ "" ""# | | ?????????? " #; ##""" " " ""#" "## | | ?????????? ""##;# ######""" """##"""""""##? | | ??????????? ? "??"????# #????###""""###########?? | | ??????????????????????# #??????######???????????? | | ??????????????????????! ???????????????????????? | | ?????????????????????#" ???????????????????????? | | ?????????????????????#" ???????????????????????? | | ?????????????????????#!!""???????????????????????? | | ?????????????????????######??????????????????????? | | ?????????????????????????????????????????????????? | | ?????????????????????????????????????????????????? | | ?????????????????????????????????????????????????? | | ?????????????????????????????????????????????????? | | ?????????????????????????????????????????????????? | | ?????????????????????????????????????????????????? | | ?????????????????????????????????????????????????? | | ?????????????????????????????????????????????????? | | ?????????????????????????????????????????????????? | | ?????????????????????????????????????????????????? | | ?????????????????????????????????????????????????? | | ?????????????????????????????????????????????????? | | ?????????????????????????????????????????????????? | | ?????????????????????????????????????????????????? | | ?????????????????????????????????????????????????? | +----------------------------------------------------+ Best States ------------- Heat Dissipation 25 Energy Generation 10 Energy Capacity 250 Matter Stores 358 Matter Capacity 450 Sight Range 16 Robot Scan Range 14 Terrain Scan Range 14 Terrain Scan Density 10 Armor Coverage 150 Resistance: KI 20 Evasion (%) 40 Targeting Accuracy 5 Recoil Reduction 2 Item Schematics ----------------- None Robot Schematics ------------------ None Fabricated ------------ Nothing Alien Tech Used ----------------- None Achievements -------------- First Step to Greatness GoHome() I Survived The Infestation Challenges ------------ None Game ------ Seed SniperHellfirePropulsion Manual? 0 Play Time 00:32:14 Cumulative 3.4 hours Start 2024.04.03 @ 13:29:24 End 2024.04.03 @ 14:02:06 Sessions 1 Manual Loads 0 Difficulty Rogue Special Mode None Game No. 3 Rogue 3 Adventurer 0 Explorer 0 Win Type - Total 0 Types 0/0/0/0/0/0/0/0/0 Lore% 0 Gallery% 7 Achievement% 7 Wizard Run 0 Options --------- Layout 1 ASCII 0 Keyboard 0 Movement Mouse Keybinds 0 Fullscreen 1 Font 24/Smallcaps Map View 50x35 Zoom Use 0% Tactical HUD 0 Map Filters NONE Filters NONE Steam 1 RUN: 001e7769-f192-4b9f-90c0-75ec1e3af093